bitfinex-derivatives/quotes_BTCF0:USTF0_20241015
["timestamp","ask_amount","ask_price","bid_price","bid_amount"]
[1729017813628,0.145172,67156.0,67155.0,0.002]
[1729017814421,0.505972,67156.0,67155.0,0.002]
[1729017815043,0.505972,67156.0,67155.0,0.04628707]
[1729017816027,0.145172,67156.0,67155.0,0.04628707]
[1729017816233,0.145172,67156.0,67155.0,0.3628]
[1729017816234,0.027,67156.0,67155.0,0.3628]
[1729017816420,0.3608,67171.0,67156.0,0.074471]
[1729017816421,0.5308,67171.0,67156.0,0.074471]
[1729017816732,0.074456,67171.0,67170.0,0.1334383]
[1729017817026,0.17,67174.0,67167.0,0.17]
[1729017817027,0.17,67174.0,67167.0,0.07372787]
[1729017817228,0.17,67174.0,67171.0,0.05896839]
[1729017817418,0.074454,67172.0,67171.0,0.05896839]
[1729017818041,0.074454,67172.0,67171.0,0.13342339]
[1729017818330,0.02251162,67174.0,67173.0,0.074453]
[1729017818535,0.074451,67175.0,67174.0,0.074452]
[1729017818925,0.074444,67181.0,67178.0,0.074447]
[1729017819124,0.074444,67181.0,67180.0,0.05889968]
[1729017820126,0.02221873,67181.0,67179.0,0.05889968]
[1729017820333,0.244445,67180.0,67179.0,0.05889968]
[1729017820722,0.17,67180.0,67178.0,0.05889968]
[1729017820920,0.17,67180.0,67176.0,0.074449]
[1729017821128,0.17,67180.0,67171.0,0.45128]
[1729017821129,0.074452,67174.0,67171.0,0.52500787]
[1729017821327,0.074455,67171.0,67170.0,0.436536]
[1729017821531,0.244453,67174.0,67171.0,0.074455]
[1729017821932,0.244453,67174.0,67173.0,0.05887568]
[1729017822130,0.17,67174.0,67172.0,0.05887568]
[1729017822332,0.074453,67173.0,67172.0,0.05887568]
[1729017823231,0.17,67174.0,67171.0,0.05986041]
[1729017823531,0.074454,67172.0,67171.0,0.001]
[1729017823726,0.074455,67171.0,67170.0,0.3608]
[1729017825634,0.074455,67171.0,67168.0,0.05886041]
[1729017825832,0.074458,67168.0,67167.0,0.05886041]
[1729017826031,0.074461,67166.0,67165.0,0.07599382]
[1729017826231,0.244461,67166.0,67165.0,0.01713341]
[1729017826537,0.244461,67166.0,67165.0,0.061273]
[1729017826925,0.244461,67166.0,67165.0,0.01713341]
[1729017827729,0.245461,67166.0,67165.0,0.01813341]
[1729017828337,0.247461,67166.0,67165.0,0.01813341]
[1729017829437,0.247461,67166.0,67165.0,0.00577419]
[1729017830834,0.26943529,67166.0,67165.0,0.00577419]
[1729017837335,0.074468,67159.0,67151.0,0.04413421]
[1729017837530,0.074481,67148.0,67147.0,0.04413421]
[1729017837738,0.074481,67148.0,67145.0,0.00223394]
[1729017837739,0.244481,67148.0,67145.0,0.00223394]
[1729017837935,0.435283,67146.0,67145.0,0.00223394]
[1729017838629,0.435283,67146.0,67144.0,0.0149]
[1729017838831,0.074484,67145.0,67144.0,0.0149]
[1729017839138,0.674484,67145.0,67136.0,0.04415827]
[1729017839332,0.38309926,67146.0,67134.0,0.04415827]
[1729017839333,0.074495,67135.0,67134.0,0.04415827]
[1729017839533,0.17,67135.0,67133.0,0.05886041]
[1729017839736,0.17,67135.0,67133.0,0.0588602]
[1729017840543,0.244495,67135.0,67134.0,0.005]
[1729017840840,0.26631692,67135.0,67134.0,0.005]
[1729017841241,0.26631692,67135.0,67134.0,0.3658]
[1729017841837,0.26731692,67135.0,67134.0,0.3658]
[1729017842642,0.26731692,67135.0,67134.0,0.3738]
[1729017842851,0.26831692,67135.0,67134.0,0.3688]
[1729017843344,0.26731692,67135.0,67134.0,0.41291902]
[1729017843549,0.26731692,67135.0,67134.0,0.41891902]
[1729017843744,0.001,67135.0,67134.0,0.41891902]
[1729017843944,0.17,67142.0,67141.0,0.074488]
[1729017843945,0.074488,67142.0,67141.0,0.074488]
[1729017844549,0.074488,67142.0,67138.0,0.17]
[1729017844550,0.02275273,67142.0,67139.0,0.16369731]
[1729017844745,0.3608,67145.0,67139.0,0.16369731]
[1729017845152,0.074485,67144.0,67141.0,0.001]
[1729017845346,0.074487,67142.0,67141.0,0.001]
[1729017845943,0.074489,67140.0,67139.0,0.16669731]
[1729017846142,0.074489,67140.0,67139.0,0.0481]
[1729017846344,0.074489,67140.0,67139.0,0.003]
[1729017846652,0.435289,67140.0,67139.0,0.003]
[1729017846849,0.605289,67140.0,67129.0,0.04410731]
[1729017847048,0.605289,67140.0,67122.0,0.07596249]
[1729017847049,0.0745,67130.0,67124.0,0.04410731]
[1729017847350,0.0745,67130.0,67122.0,0.00223462]
[1729017847351,0.074508,67123.0,67122.0,0.00223462]
[1729017847654,0.244508,67123.0,67122.0,0.00223462]
[1729017848556,0.289208,67123.0,67122.0,0.00223462]
[1729017848856,0.31112958,67123.0,67122.0,0.00223462]
[1729017849550,0.31112958,67123.0,67122.0,0.01623462]
[1729017850648,0.31212958,67123.0,67122.0,0.03023462]
[1729017851241,0.31312958,67123.0,67122.0,0.03023462]
[1729017857956,0.26842958,67123.0,67122.0,0.03023462]
[1729017858556,0.09842958,67123.0,67122.0,0.03023462]
[1729017858860,0.002,67123.0,67122.0,0.87474362]
[1729017859056,0.3608,67139.0,67130.0,0.0745]
[1729017859057,0.17223497,67137.0,67130.0,0.0745]
[1729017859253,0.17,67134.0,67130.0,0.0745]
[1729017859455,0.17,67134.0,67133.0,0.074497]
[1729017859660,0.00223497,67137.0,67136.0,0.074494]
[1729017859959,0.3608,67154.0,67147.0,0.18491]
[1729017860163,0.3608,67154.0,67153.0,0.074475]
[1729017860347,0.074472,67156.0,67151.0,0.17]
[1729017860669,0.074472,67156.0,67154.0,0.074474]
[1729017861062,0.074472,67156.0,67155.0,0.3608]
[1729017862966,0.074473,67155.0,67154.0,0.005]
[1729017863348,0.074473,67155.0,67151.0,0.074477]
[1729017863548,0.17,67152.0,67151.0,0.074477]
[1729017863863,0.07447,67158.0,67150.0,0.17]
[1729017864051,0.17,67159.0,67154.0,0.003]
[1729017864368,0.074473,67155.0,67154.0,0.008]
[1729017864553,0.074473,67155.0,67154.0,0.005]
[1729017864753,0.244473,67155.0,67154.0,0.005]
[1729017865657,0.244473,67155.0,67154.0,0.3658]
[1729017866265,0.244473,67155.0,67154.0,0.443274]
[1729017866455,0.29626778,67155.0,67154.0,0.077474]
[1729017866664,0.29626778,67155.0,67154.0,0.003]
[1729017866862,0.29626778,67155.0,67154.0,0.3638]
[1729017867059,0.00223427,67162.0,67161.0,0.074466]
[1729017867361,0.17,67170.0,67165.0,0.01267573]
[1729017867663,0.0513814,67169.0,67168.0,0.074458]
[1729017868366,0.19200625,67170.0,67169.0,0.074457]
[1729017868558,0.22176631,67170.0,67169.0,0.074457]
[1729017869157,0.29622231,67170.0,67169.0,0.074457]
[1729017869467,0.22176631,67170.0,67169.0,0.074457]
[1729017870270,0.178,67170.0,67169.0,0.074457]
[1729017870561,0.008,67170.0,67169.0,0.074457]
[1729017870752,0.17,67173.0,67168.0,0.001]
[1729017870958,0.17,67173.0,67172.0,0.074454]
[1729017871270,0.244453,67173.0,67172.0,0.074454]
[1729017872069,0.252453,67173.0,67172.0,0.074454]
[1729017872763,0.19,67173.0,67172.0,0.075454]
[1729017873559,0.182,67173.0,67172.0,0.076454]
[1729017873759,0.19,67173.0,67172.0,0.076454]
[1729017874371,0.264453,67173.0,67172.0,0.002]
[1729017874563,0.434453,67173.0,67172.0,0.002]
[1729017874963,0.264453,67173.0,67172.0,0.002]
[1729017876872,0.434453,67173.0,67172.0,0.002]
[1729017877255,0.264453,67173.0,67172.0,0.002]
[1729017878058,0.264453,67173.0,67172.0,0.076454]
[1729017878255,0.264453,67173.0,67172.0,0.002]
[1729017878459,0.434453,67173.0,67172.0,0.002]
[1729017878770,0.264453,67173.0,67172.0,0.002]
[1729017879960,0.264453,67173.0,67172.0,0.076454]
[1729017881870,0.02,67173.0,67172.0,0.846454]
[1729017882060,0.00223346,67176.0,67175.0,0.074451]
[1729017882257,0.17,67177.0,67175.0,0.3608]
[1729017882561,0.074449,67176.0,67175.0,0.43525]
[1729017883359,0.085449,67176.0,67175.0,0.43625]
[1729017883773,0.085449,67176.0,67175.0,0.43725]
[1729017888573,0.19783118,67176.0,67175.0,0.3627672]
[1729017888761,0.26658479,67176.0,67175.0,0.3627672]
[1729017888968,0.26658485,67176.0,67175.0,0.3627672]
[1729017889169,0.26666345,67176.0,67175.0,0.3627672]
[1729017889574,0.19783118,67176.0,67175.0,0.3627672]
[1729017890666,0.26600725,67176.0,67175.0,0.3627672]
[1729017892470,0.39953055,67176.0,67175.0,0.3627672]
[1729017892872,0.26600725,67176.0,67175.0,0.3627672]
[1729017894278,0.26600725,67176.0,67175.0,0.07645]
[1729017895174,0.34493435,67176.0,67175.0,0.07645]
[1729017895375,0.56356583,67176.0,67175.0,0.002]
[1729017895679,0.34469164,67176.0,67175.0,0.00068185]
[1729017896577,0.085449,67176.0,67175.0,0.00068185]
[1729017897482,0.085449,67176.0,67175.0,0.11916985]
[1729017897483,0.011,67176.0,67175.0,0.11916985]
[1729017898069,0.011,67176.0,67175.0,0.07513285]
[1729017898976,0.02213114,67182.0,67180.0,0.00167]
[1729017899183,0.3608,67184.0,67181.0,0.074444]
[1729017899384,0.3608,67184.0,67183.0,0.11860603]
[1729017899583,0.3608,67184.0,67183.0,0.074442]
[1729017900685,0.0456,67196.0,67183.0,0.22890026]
[1729017900877,0.0456,67196.0,67190.0,0.28859227]
[1729017901075,0.0456,67196.0,67193.0,0.07443]
[1729017901379,0.0456,67196.0,67193.0,0.11858167]
[1729017901380,0.06787324,67196.0,67193.0,0.11858167]
[1729017901586,0.06787324,67196.0,67194.0,0.074429]
[1729017902182,0.06787324,67196.0,67195.0,0.074428]
[1729017902587,0.02227324,67196.0,67195.0,0.605228]
[1729017902880,0.3608,67213.0,67195.0,0.605228]
[1729017902881,0.0465,67212.0,67211.0,0.074411]
[1729017903474,0.0465,67212.0,67201.0,0.40487966]
[1729017903475,0.22801667,67212.0,67203.0,0.02230587]
[1729017903675,0.18151667,67211.0,67210.0,0.074412]
[1729017903876,0.18151667,67211.0,67205.0,0.17]
[1729017904085,0.18151667,67210.0,67208.0,0.074413]
[1729017904283,0.18151667,67209.0,67205.0,0.12529908]
[1729017904586,0.18151667,67208.0,67205.0,0.12529908]
[1729017904776,0.17258752,67207.0,67205.0,0.12529908]
[1729017904977,0.17,67211.0,67203.0,0.001]
[1729017904978,0.17258663,67206.0,67203.0,0.001]
[1729017905173,0.17258663,67205.0,67204.0,0.074418]
[1729017905378,0.17258663,67205.0,67203.0,0.001]
[1729017905379,0.17258337,67205.0,67203.0,0.001]
[1729017905578,0.34258337,67204.0,67195.0,0.36247]
[1729017905774,0.244425,67198.0,67195.0,0.076098]
[1729017905975,0.41700837,67198.0,67195.0,0.00167]
[1729017906176,0.49448272,67198.0,67195.0,0.00167]
[1729017906891,0.51679165,67198.0,67195.0,0.076098]
[1729017907487,0.51679165,67198.0,67195.0,0.00167]
[1729017909083,0.51679165,67198.0,67177.0,0.0905]
[1729017909084,0.44644,67197.0,67177.0,0.0438]
[1729017909300,0.44644,67197.0,67176.0,0.00359271]
[1729017909301,0.074448,67177.0,67176.0,0.00359271]
[1729017909494,0.17258337,67177.0,67176.0,0.07668171]
[1729017909679,0.24703137,67177.0,67176.0,0.07668171]
[1729017909881,0.24703137,67177.0,67176.0,0.00223271]
[1729017910078,0.37130572,67177.0,67176.0,0.00223271]
[1729017910280,0.39375685,67177.0,67176.0,0.00223271]
[1729017910494,0.3608,67180.0,67179.0,0.074446]
[1729017910979,0.17,67181.0,67176.0,0.00923271]
[1729017911186,0.17,67181.0,67180.0,0.074445]
[1729017912083,0.074447,67180.0,67179.0,0.074445]
[1729017912283,0.244447,67180.0,67179.0,0.074445]
[1729017912879,0.17,67180.0,67176.0,0.00223271]
[1729017913184,0.074448,67177.0,67176.0,0.08368171]
[1729017914089,0.074448,67177.0,67176.0,0.00923271]
[1729017914593,0.074448,67177.0,67176.0,0.00223271]
[1729017915895,0.074448,67177.0,67176.0,0.00923271]
[1729017916491,0.074448,67177.0,67176.0,0.00223271]
[1729017916794,0.075448,67177.0,67176.0,0.01123271]
[1729017917383,0.26780535,67177.0,67176.0,0.01123271]
[1729017917587,0.691049,67176.0,67156.0,0.3608]
[1729017917896,0.17,67160.0,67156.0,0.435272]
[1729017918095,0.17,67160.0,67159.0,0.074468]
[1729017918602,0.17,67163.0,67162.0,0.074465]
[1729017918983,0.074453,67173.0,67172.0,0.074452]
[1729017919183,0.074456,67170.0,67169.0,0.089357]
[1729017919496,0.244456,67170.0,67169.0,0.089357]
[1729017920892,0.605256,67170.0,67169.0,0.089357]
[1729017921293,0.3608,67170.0,67169.0,0.089357]
[1729017921496,0.3618,67170.0,67169.0,0.089357]
[1729017922194,0.3618,67170.0,67169.0,0.090357]
[1729017922398,0.001,67170.0,67169.0,0.090357]
[1729017923589,0.001,67170.0,67169.0,0.536997]
[1729017923994,0.001,67170.0,67169.0,1.136997]
[1729017925194,0.001,67170.0,67169.0,1.135997]
[1729017925498,0.17,67175.0,67169.0,1.145997]
[1729017925692,0.001,67170.0,67169.0,0.109357]
[1729017925888,0.001,67170.0,67169.0,0.13211547]
[1729017926095,0.001,67170.0,67169.0,1.17875547]
[1729017926403,0.001,67170.0,67169.0,1.33873102]
[1729017926599,0.001,67170.0,67169.0,0.65535069]
[1729017926795,0.001,67170.0,67169.0,0.21871069]
[1729017927000,0.17,67190.0,67169.0,1.36089369]
[1729017927204,0.074437,67188.0,67185.0,0.17]
[1729017927392,0.00223304,67191.0,67190.0,0.074434]
[1729017928196,0.17223304,67191.0,67190.0,0.074434]
[1729017929011,0.24666604,67191.0,67190.0,0.13299252]
[1729017930297,0.24666604,67191.0,67190.0,0.074434]
[1729017930906,0.25166604,67191.0,67190.0,0.075434]
[1729017931601,0.25166604,67191.0,67190.0,0.13399252]
[1729017932303,0.25166604,67191.0,67190.0,0.075434]
[1729017932697,0.25166604,67191.0,67190.0,0.13399252]
[1729017933002,0.25166604,67191.0,67190.0,0.075434]
[1729017933308,0.25166604,67191.0,67190.0,0.001]
[1729017933600,0.61246604,67191.0,67190.0,0.001]
[1729017933800,0.63530712,67191.0,67190.0,0.001]
[1729017934506,0.68030712,67191.0,67190.0,0.001]
[1729017935008,1.28030712,67191.0,67190.0,0.001]
[1729017935196,1.32800712,67191.0,67190.0,0.001]
[1729017936113,0.55800712,67191.0,67190.0,0.001]
[1729017936406,0.46530712,67191.0,67190.0,0.075434]
[1729017937004,0.46530712,67191.0,67190.0,0.13410622]
[1729017937503,0.46530712,67191.0,67190.0,0.13409306]
[1729017938405,0.39087412,67191.0,67190.0,0.13409306]
[1729017938713,0.39087412,67191.0,67190.0,0.075434]
[1729017939508,0.36803304,67191.0,67190.0,0.075434]
[1729017940412,0.44246604,67191.0,67190.0,0.075434]
[1729017942112,0.44246604,67191.0,67190.0,0.001]
[1729017944302,0.074441,67184.0,67183.0,0.0149]
[1729017944505,0.605241,67184.0,67183.0,0.0149]
[1729017945104,0.605241,67184.0,67171.0,0.00223299]
[1729017945105,1.74732,67184.0,67171.0,0.00223299]
[1729017945417,0.5308,67172.0,67161.0,0.074465]
[1729017945609,0.244465,67162.0,67161.0,0.074465]
[1729017945909,0.17,67162.0,67161.0,0.0149]
[1729017946111,0.605265,67162.0,67161.0,0.0149]
[1729017947310,0.3608,67162.0,67161.0,0.0149]
[1729017947615,0.5308,67169.0,67166.0,0.07446]
[1729017947809,0.5308,67169.0,67162.0,0.074465]
[1729017948005,0.244464,67163.0,67161.0,0.0149]
[1729017948205,0.075465,67162.0,67161.0,0.0219]
[1729017948407,0.075465,67162.0,67161.0,0.0309]
[1729017948408,0.119865,67162.0,67161.0,0.0309]
[1729017948718,0.118865,67162.0,67161.0,0.0239]
[1729017948916,0.118865,67162.0,67161.0,0.06789543]
[1729017949705,0.118865,67162.0,67161.0,0.0239]
[1729017950409,0.119865,67162.0,67161.0,0.0309]
[1729017951212,0.119865,67162.0,67161.0,0.07489543]
[1729017951512,0.001,67162.0,67161.0,0.14938295]
[1729017951710,0.001,67162.0,67161.0,0.105366]
[1729017952611,0.001,67162.0,67161.0,0.14937451]
[1729017953216,0.8926,67162.0,67138.0,0.1024635]
[1729017953423,0.8926,67162.0,67108.0,0.13173878]
[1729017953424,0.8708,67139.0,67108.0,0.13173878]
[1729017953610,0.590414,67109.0,67103.0,0.00076]
[1729017953912,0.590414,67109.0,67096.0,0.01491]
[1729017953913,0.435329,67104.0,67096.0,0.01491]
[1729017954117,0.435337,67097.0,67096.0,0.01367001]
[1729017954316,0.775337,67097.0,67096.0,1e-08]
[1729017954619,0.435337,67097.0,67096.0,1e-08]
[1729017954818,0.605337,67097.0,67096.0,1e-08]
[1729017955005,0.775337,67097.0,67096.0,1e-08]
[1729017955420,1.376337,67097.0,67096.0,1e-08]
[1729017955616,0.17,67086.0,67085.0,1.1e-07]
[1729017955909,0.074583,67056.0,67047.0,0.26729091]
[1729017956218,1.2416,67086.0,67047.0,0.26]
[1729017956219,0.074587,67053.0,67047.0,0.26]
[1729017956415,0.33096,67060.0,67047.0,0.26]
[1729017957318,0.074588,67051.0,67047.0,0.26]
[1729017957616,0.059673,67047.0,67044.0,0.0468]
[1729017958021,0.059673,67047.0,67046.0,0.44744]
[1729017958411,0.059673,67047.0,67046.0,1.04744]
[1729017959519,0.060673,67047.0,67046.0,1.04744]
[1729017959716,0.045753,67047.0,67046.0,1.04744]
[1729017959913,0.001,67047.0,67045.0,0.013]
[1729017960107,0.001,67047.0,67038.0,0.3608]
[1729017960313,0.074602,67039.0,67038.0,0.3608]
[1729017960811,0.059682,67039.0,67038.0,1.40832]
[1729017961121,0.044762,67039.0,67038.0,1.40832]
[1729017961935,0.045762,67039.0,67038.0,1.41432]
[1729017962221,0.045762,67039.0,67038.0,0.45352]
[1729017962411,0.045762,67039.0,67038.0,0.006]
[1729017962412,0.391642,67039.0,67038.0,0.006]
[1729017962611,0.376722,67039.0,67038.0,0.006]
[1729017962812,0.3618,67039.0,67038.0,0.006]
[1729017963018,0.437402,67039.0,67038.0,0.006]
[1729017963219,0.437402,67039.0,67032.0,0.00223742]
[1729017963525,0.420488,67033.0,67032.0,0.00223742]
[1729017964320,0.420488,67033.0,67032.0,0.00523742]
[1729017964721,0.421488,67033.0,67032.0,0.00523742]
[1729017965032,0.406558,67033.0,67032.0,0.00523742]
[1729017965820,0.406558,67033.0,67032.0,4.2e-07]
[1729017966423,0.074616,67026.0,67025.0,0.01493]
[1729017966613,0.695416,67026.0,67025.0,0.01493]
[1729017967624,0.696416,67026.0,67025.0,0.02893]
[1729017967925,0.074605,67036.0,67025.0,1.95833]
[1729017968229,0.0420278,67036.0,67035.0,0.6208]
[1729017968424,0.36303796,67048.0,67035.0,1.2208]
[1729017968620,0.00223796,67048.0,67042.0,0.3608]
[1729017968822,0.074597,67043.0,67042.0,0.6208]
[1729017969316,0.059677,67043.0,67042.0,0.3608]
[1729017970130,0.061677,67043.0,67042.0,0.3608]
[1729017972221,0.059677,67043.0,67042.0,0.3638]
[1729017972426,0.059677,67043.0,67042.0,1.41128]
[1729017972623,0.044757,67043.0,67042.0,1.67628]
[1729017972820,0.044757,67043.0,67042.0,0.9688]
[1729017974229,0.044757,67043.0,67042.0,0.9638]
[1729017974434,0.044757,67043.0,67042.0,0.9688]
[1729017975029,0.044757,67043.0,67042.0,0.3688]
[1729017975228,0.26,67045.0,67042.0,0.3688]
[1729017975731,0.074597,67043.0,67042.0,0.3658]
[1729017975933,0.074597,67043.0,67042.0,0.3678]
[1729017976329,0.074597,67043.0,67042.0,0.3658]
[1729017976530,0.074597,67043.0,67042.0,0.3678]
[1729017976938,0.074597,67043.0,67042.0,1.67328]
[1729017977127,0.059677,67043.0,67042.0,1.67528]
[1729017978128,0.059677,67043.0,67042.0,0.3678]
[1729017978330,0.044757,67043.0,67042.0,0.3678]
[1729017978639,0.044757,67043.0,67042.0,0.3628]
[1729017978935,0.044757,67043.0,67042.0,0.3678]
[1729017979524,0.044757,67043.0,67042.0,0.3668]
[1729017980431,0.044757,67043.0,67042.0,0.3658]
[1729017980933,0.044757,67043.0,67042.0,0.3638]
[1729017981928,0.044757,67043.0,67042.0,0.3608]
[1729017982129,0.044757,67043.0,67042.0,0.3628]
[1729017982726,0.044757,67043.0,67042.0,0.3608]
[1729017982926,0.044757,67043.0,67042.0,0.3628]
[1729017984838,0.044757,67043.0,67042.0,0.002]
[1729017985040,0.044757,67043.0,67035.0,0.43519303]
[1729017985041,1.092237,67043.0,67035.0,0.3608]
[1729017985236,1.092237,67043.0,67014.0,0.4260635]
[1729017985237,0.074619,67023.0,67022.0,0.3608]
[1729017985737,0.059689,67023.0,67022.0,0.3608]
[1729017986042,0.059689,67023.0,67022.0,0.37573]
[1729017986941,0.060689,67023.0,67022.0,0.63773]
[1729017987632,0.060689,67023.0,67022.0,0.45136303]
[1729017988136,0.061689,67023.0,67022.0,0.38773]
[1729017990643,0.061689,67023.0,67022.0,0.02693]
[1729017992144,0.061689,67023.0,67022.0,0.02193]
[1729017992145,0.060689,67023.0,67022.0,0.02193]
[1729017993427,0.060689,67023.0,67022.0,0.01993]
[1729017993428,0.059689,67023.0,67022.0,0.01993]
[1729017993739,0.060689,67023.0,67022.0,0.01993]
[1729017993937,0.060689,67023.0,67022.0,0.01493]
[1729017994130,0.061689,67023.0,67022.0,0.01493]
[1729017998549,0.074625,67018.0,67009.0,0.07363303]
[1729017998846,0.074632,67012.0,67008.0,0.3608]
[1729017999340,0.059702,67012.0,67008.0,0.3608]
[1729017999642,0.059702,67012.0,67011.0,0.00423821]
[1729017999832,0.059702,67012.0,67011.0,0.01916821]
[1729018000345,0.08252231,67012.0,67011.0,0.01916821]
[1729018000741,0.08252231,67012.0,67011.0,0.02916821]
[1729018001443,0.08252231,67012.0,67011.0,0.01916821]
[1729018001744,0.08352231,67012.0,67011.0,0.02916821]
[1729018003743,0.08352231,67012.0,67011.0,2.1e-07]
[1729018004045,0.72932231,67012.0,67011.0,2.1e-07]
[1729018004640,0.12932231,67012.0,67011.0,2.1e-07]
[1729018004836,0.72932231,67012.0,67011.0,2.1e-07]
[1729018005143,0.12932231,67012.0,67011.0,2.1e-07]
[1729018005533,0.72932231,67012.0,67011.0,2.1e-07]
[1729018006235,0.72932231,67012.0,67001.0,0.3608]
[1729018006547,0.074645,67000.0,66999.0,0.01493]
[1729018008332,0.075645,67000.0,66999.0,0.01493]
[1729018009744,0.076645,67000.0,66999.0,0.01493]
[1729018010742,0.09927155,67000.0,66999.0,0.01493]
[1729018010940,0.09927155,67000.0,66999.0,0.37573]
[1729018011138,0.076645,67000.0,66999.0,0.37573]
[1729018012645,0.002,67000.0,66999.0,0.450376]
[1729018012853,0.002,67000.0,66999.0,1.498136]
[1729018013035,0.26,67011.0,66999.0,1.42349]
[1729018013343,0.074634,67010.0,67005.0,0.3608]
[1729018013544,0.074638,67006.0,67005.0,0.3608]
[1729018014458,0.074638,67006.0,67005.0,0.435439]
[1729018014649,0.074638,67006.0,67005.0,0.49463892]
[1729018015047,0.074638,67006.0,67005.0,0.27503892]
[1729018015251,1.8965,67006.0,67005.0,0.03719412]
[1729018015444,1.8965,67006.0,66972.0,0.3608]
[1729018015445,0.074647,66999.0,66972.0,0.4632635]
[1729018015641,0.26,66982.0,66979.0,0.3608]
[1729018015944,0.26,66982.0,66980.0,0.09337964]
[1729018015945,0.074666,66981.0,66980.0,0.09337964]
[1729018016140,0.07467,66978.0,66977.0,0.01494]
[1729018016345,0.33467,66978.0,66977.0,0.01494]
[1729018017341,0.33567,66978.0,66977.0,0.01794]
[1729018017542,0.07667,66978.0,66977.0,0.01794]
[1729018018054,0.002,66978.0,66977.0,0.01794]
[1729018018353,0.07667,66978.0,66977.0,0.01794]
[1729018022956,0.07667,66978.0,66977.0,0.092611]
[1729018023167,0.02286847,66985.0,66979.0,0.074668]
[1729018023342,0.074669,66980.0,66979.0,0.435468]
[1729018024354,0.074651,66995.0,66979.0,0.435468]
[1729018024355,0.001,66985.0,66979.0,1.06868]
[1729018024557,0.099341,67004.0,66979.0,1.06868]
[1729018024558,0.07688991,66996.0,66984.0,0.6208]
[1729018024757,0.00223991,66996.0,66995.0,0.6208]
[1729018024957,0.00223991,66996.0,66995.0,0.3608]
[1729018025350,0.07688891,66996.0,66995.0,0.435451]
[1729018025854,0.07688891,66996.0,66995.0,0.3608]
[1729018026063,0.08488891,66996.0,66995.0,0.3608]
[1729018026359,0.074646,67000.0,66995.0,0.6208]
[1729018026551,0.074646,67000.0,66999.0,0.074646]
[1729018027258,0.38277938,67005.0,66995.0,0.62156]
[1729018027458,0.074643,67002.0,67000.0,0.26]
[1729018027650,0.074643,67002.0,67001.0,0.3608]
[1729018028745,0.36303917,67014.0,67001.0,0.3608]
[1729018028947,0.07464,67006.0,67005.0,0.074639]
[1729018029163,0.074641,67005.0,67001.0,0.436443]
[1729018029353,0.013,67002.0,67001.0,0.436443]
[1729018029665,0.013,67002.0,67001.0,0.485443]
[1729018029856,0.087643,67002.0,67001.0,0.3618]
[1729018030262,0.087643,67002.0,66987.0,0.049]
[1729018030263,0.074652,66994.0,66988.0,0.3608]
[1729018031364,0.074652,66994.0,66988.0,0.435458]
[1729018031556,0.074652,66994.0,66988.0,0.36156]
[1729018031752,0.074652,66994.0,66988.0,0.3608]
[1729018031952,0.079652,66994.0,66988.0,0.3608]
[1729018032961,0.083652,66994.0,66988.0,0.3608]
[1729018033158,0.083652,66994.0,66988.0,0.435458]
[1729018033360,0.083652,66994.0,66988.0,0.436338]
[1729018033668,0.083652,66994.0,66988.0,0.36168]
[1729018033965,0.083652,66994.0,66990.0,0.074656]
[1729018034353,0.083652,66994.0,66988.0,0.3608]
[1729018035264,0.10587129,66994.0,66988.0,0.435458]
[1729018035469,0.10587129,66994.0,66988.0,0.436218]
[1729018036868,0.10587129,66994.0,66988.0,0.36156]
[1729018037069,0.10587129,66994.0,66988.0,0.3608]
[1729018037669,0.10587129,66994.0,66988.0,0.435457]
[1729018037975,0.10587129,66994.0,66989.0,0.074657]
[1729018038367,0.10587129,66994.0,66988.0,0.3608]
[1729018038570,0.10587129,66994.0,66991.0,0.074655]
[1729018038875,0.10587129,66994.0,66992.0,0.074654]
[1729018039070,0.009,66994.0,66989.0,0.26]
[1729018039272,0.074639,67006.0,67004.0,0.074641]
[1729018039478,0.0226598,67006.0,67005.0,0.695439]
[1729018039678,0.074636,67009.0,67008.0,0.074636]
[1729018039869,0.36836528,67021.0,67005.0,0.6208]
[1729018039870,0.38272848,67012.0,67005.0,0.6208]
[1729018040066,0.38272848,67012.0,67005.0,0.62156]
[1729018040265,0.02192848,67012.0,67011.0,0.3608]
[1729018040581,0.074632,67012.0,67011.0,0.3608]
[1729018041466,0.075632,67012.0,67011.0,0.3738]
[1729018042378,0.336632,67012.0,67011.0,0.3798]
[1729018043175,0.076632,67012.0,67011.0,0.3798]
[1729018044469,0.076632,67012.0,67011.0,0.454433]
[1729018044470,0.002,67012.0,67011.0,0.454433]
[1729018044975,0.076632,67012.0,67011.0,0.454433]
[1729018047675,0.002,67012.0,67011.0,0.454433]
[1729018047880,0.002,67012.0,67011.0,0.714433]
[1729018048070,0.26,67030.0,67013.0,0.074631]
[1729018048071,0.074621,67022.0,67013.0,0.074631]
[1729018048273,0.074622,67021.0,67020.0,0.695422]
[1729018048583,0.074622,67021.0,67020.0,0.6208]
[1729018048770,0.074622,67021.0,67020.0,0.3608]
[1729018049778,0.074622,67021.0,67020.0,0.3738]
[1729018050683,0.09667461,67021.0,67020.0,0.3738]
[1729018050873,0.09667461,67021.0,67020.0,0.448423]
[1729018051785,0.09767461,67021.0,67020.0,0.462423]
[1729018053068,0.09767461,67021.0,67020.0,0.3878]
[1729018054478,0.15041734,67021.0,67020.0,0.31313735]
[1729018054683,0.195853,67021.0,67020.0,0.31313735]
[1729018054877,0.195853,67021.0,67020.0,0.38776035]
[1729018055073,0.15921293,67021.0,67020.0,0.26829907]
[1729018055383,0.18752788,67021.0,67020.0,0.26829907]
[1729018055683,0.0448013,67021.0,67020.0,0.26829907]
[1729018055881,0.0448013,67021.0,67020.0,0.43829907]
[1729018058072,0.02247738,67026.0,67020.0,0.43829907]